fUSD/lending_fUSD_20250616
["ID","MTS","AMOUNT","RATE_DAILY","PERIOD"]
[366060165,1750041049424,-497.10639667,0.00016438,2]
[366060166,1750041049434,-490.0,0.00016438,2]
[366060167,1750041049443,-1433.35,0.00016438,2]
[366060168,1750041049452,-873.96,0.00016438,2]
[366060169,1750041049461,-468.68321448,0.00016438,2]
[366060170,1750041049471,-151.0,0.00016438,2]
[366060171,1750041049480,-151.0,0.00016438,2]
[366060172,1750041049489,-872.44,0.00016438,2]
[366060173,1750041049499,-1845.44,0.00016438,2]
[366060174,1750041049509,-502.62583588,0.00016438,2]
[366060175,1750041049518,-1122.74,0.00016438,2]
[366060176,1750041049528,-754.88,0.00016438,2]
[366060177,1750041049537,-436.37575592,0.00016438,2]
[366060178,1750041049547,-492.6976837,0.00016438,2]
[366060179,1750041049556,-496.53153022,0.00016438,2]
[366060180,1750041049565,-1249.01,0.00016438,2]
[366060181,1750041049575,-440.0,0.00016438,2]
[366060182,1750041049584,-600.81,0.00016438,2]
[366060183,1750041049594,-490.0,0.00016438,2]
[366060184,1750041049603,-490.0,0.00016438,2]
[366060185,1750041049612,-493.67045002,0.00016438,2]
[366060186,1750041049622,-490.0,0.00016438,2]
[366060187,1750041049632,-490.95324714,0.00016438,2]
[366060188,1750041049641,-4055.77,0.00016438,2]
[366060189,1750041049651,-491.74115082,0.00016438,2]
[366060190,1750041049661,-748.37,0.00016438,2]
[366060191,1750041049671,-490.0,0.00016438,2]
[366060192,1750041049680,-4049.27,0.00016438,2]
[366060193,1750041049689,-1622.06,0.00016438,2]
[366060194,1750041049699,-490.0,0.00016438,2]
[366060195,1750041049708,-2044.36,0.00016438,2]
[366060196,1750041049717,-1229.54,0.00016438,2]
[366060197,1750041049727,-944.88,0.00016438,2]
[366060198,1750041049736,-622.74887609,0.00016438,2]
[366060199,1750041049745,-2112.77,0.00016438,2]
[366060200,1750041049755,-490.0,0.00016438,2]
[366060201,1750041049764,-2779.96,0.00016438,2]
[366060202,1750041049773,-490.0,0.00016438,2]
[366060203,1750041049782,-490.0,0.00016438,2]
[366060204,1750041049792,-490.0,0.00016438,2]
[366060205,1750041049802,-490.0,0.00016438,2]
[366060206,1750041049811,-521.93,0.00016438,2]
[366060207,1750041049821,-576.59,0.00016438,2]
[366060208,1750041049830,-460.0,0.00016438,2]
[366060209,1750041049840,-3093.16,0.00016438,2]
[366060210,1750041049849,-1576.9,0.00016438,2]
[366060211,1750041049858,-470.0,0.00016438,2]
[366060212,1750041049868,-491.61421946,0.00016438,2]
[366060213,1750041049877,-2129.41,0.00016438,2]
[366060214,1750041049887,-2946.27,0.00016438,2]
[366060215,1750041049896,-2112.91,0.00016438,2]
[366060216,1750041049905,-494.36688997,0.00016438,2]
[366060217,1750041049915,-490.0,0.00016438,2]
[366060218,1750041049924,-507.3207303,0.00016438,2]
[366060219,1750041049933,-540.51,0.00016438,2]
[366060220,1750041049942,-1797.83,0.00016438,2]
[366060221,1750041049951,-490.0,0.00016438,2]
[366060222,1750041049961,-490.0,0.00016438,2]
[366060223,1750041049970,-848.84,0.00016438,2]
[366060224,1750041049979,-5062.64,0.00016438,2]
[366060225,1750041049988,-201.001992,0.00016438,2]
[366060226,1750041049997,-490.0,0.00016438,2]
[366060227,1750041050008,-1851.67,0.00016438,2]
[366060228,1750041050017,-490.0,0.00016438,2]
[366060229,1750041050027,-534.04635329,0.00016438,2]
[366060230,1750041050036,-164.15426659,0.00016438,2]
[366060231,1750041050045,-490.0,0.00016438,2]
[366060232,1750041050056,-1793.49,0.00016438,2]
[366060233,1750041050065,-201.001992,0.00016438,2]
[366060234,1750041050075,-513.23,0.00016438,2]
[366060235,1750041050085,-1283.5,0.00016438,2]
[366060236,1750041050094,-481.24287783,0.00016438,2]
[366060237,1750041050104,-490.0,0.00016438,2]
[366060238,1750041050113,-504.50713082,0.00016438,2]
[366060239,1750041050123,-1317.89,0.00016438,2]
[366060240,1750041050132,-544.3,0.00016438,2]
[366060241,1750041050141,-689.67,0.00016438,2]
[366060242,1750041050151,-490.0,0.00016438,2]
[366060243,1750041050161,-3118.23,0.00016438,2]
[366060244,1750041050170,-378.286162,0.00016438,2]
[366060245,1750041050179,-490.0,0.00016438,2]
[366060246,1750041050189,-490.0,0.00016438,2]
[366060247,1750041050198,-500.0,0.00016438,2]
[366060248,1750041050208,-500.0,0.00016438,2]
[366060249,1750041050218,-490.0,0.00016438,2]
[366060250,1750041050228,-500.0,0.00016438,2]
[366060251,1750041050241,-378.286162,0.00016438,2]
[366060252,1750041050250,-500.0,0.00016438,2]
[366060253,1750041050260,-490.0,0.00016438,2]
[366060254,1750041050270,-1675.43,0.00016438,2]
[366060255,1750041050279,-490.0,0.00016438,2]
[366060256,1750041050289,-11796.17,0.00016438,2]
[366060257,1750041050299,-490.0,0.00016438,2]
[366060258,1750041050308,-2140.49,0.00016438,2]
[366060259,1750041050319,-581.5,0.00016438,2]
[366060260,1750041050329,-4431.5,0.00016438,2]
[366060261,1750041050338,-492.38736297,0.00016438,2]
[366060262,1750041050348,-490.0,0.00016438,2]
[366060263,1750041050357,-151.0,0.00016438,2]
[366060264,1750041050367,-490.0,0.00016438,2]
[366060265,1750041050376,-1521.51,0.00016438,2]
[366060266,1750041050387,-1731.94,0.00016438,2]
[366060267,1750041050397,-2867.42,0.00016438,2]
[366060268,1750041050535,-645.78,0.00016438,2]
[366060269,1750041050545,-8405.48,0.00016438,2]
[366060270,1750041050555,-490.0,0.00016438,2]
[366060271,1750041050563,-490.0,0.00016438,2]
[366060272,1750041050573,-5622.86,0.00016438,2]
[366060273,1750041050582,-746.3,0.00016438,2]
[366060274,1750041050591,-2759.04,0.00016438,2]
[366060275,1750041050601,-151.324056,0.00016438,2]
[366060276,1750041050610,-490.0,0.00016438,2]
[366060277,1750041050620,-497.57872202,0.00016438,2]
[366060278,1750041050630,-490.0,0.00016438,2]
[366060279,1750041050639,-2473.55,0.00016438,2]
[366060280,1750041050648,-490.0,0.00016438,2]
[366060281,1750041050658,-493.36340146,0.00016438,2]
[366060282,1750041050667,-558.83,0.00016438,2]
[366060283,1750041050676,-1633.86,0.00016438,2]
[366060284,1750041050685,-490.0,0.00016438,2]
[366060285,1750041050694,-275.95425094,0.00016438,2]
[366060286,1750041050703,-490.0,0.00016438,2]
[366060287,1750041050712,-490.0,0.00016438,2]
[366060288,1750041050721,-491.5898332,0.00016438,2]
[366060289,1750041050730,-1718.48,0.00016438,2]
[366060290,1750041050740,-490.0,0.00016438,2]
[366060291,1750041050749,-490.0,0.00016438,2]
[366060292,1750041050758,-2538.75,0.00016438,2]
[366060293,1750041050767,-4382.5,0.00016438,2]
[366060294,1750041050776,-1080.52,0.00016438,2]
[366060295,1750041050785,-1791.07,0.00016438,2]
[366060296,1750041050794,-490.0,0.00016438,2]
[366060297,1750041050804,-151.0,0.00016438,2]
[366060298,1750041050813,-490.0,0.00016438,2]
[366060299,1750041050822,-490.0,0.00016438,2]
[366060300,1750041050831,-406.65545927,0.00016438,2]
[366060301,1750041050840,-491.17,0.00016438,2]
[366060302,1750041050849,-834.13,0.00016438,2]
[366060303,1750041050858,-1130.81,0.00016438,2]
[366060304,1750041050868,-2660.89,0.00016438,2]
[366060305,1750041050877,-490.0,0.00016438,2]
[366060306,1750041050887,-6590.69,0.00016438,2]
[366060307,1750041050896,-1503.66,0.00016438,2]
[366060308,1750041050906,-655.2,0.00016438,2]
[366060309,1750041050915,-1415.84,0.00016438,2]
[366060310,1750041050925,-536.2,0.00016438,2]
[366060311,1750041050934,-150.0,0.00016438,2]
[366060312,1750041050943,-150.0,0.00016438,2]
[366060313,1750041050952,-151.0,0.00016438,2]
[366060314,1750041050962,-490.0,0.00016438,2]
[366060315,1750041050971,-1971.04,0.00016438,2]
[366060316,1750041050981,-556.22,0.00016438,2]
[366060317,1750041050990,-556.22,0.00016438,2]
[366060318,1750041050999,-556.22,0.00016438,2]
[366060319,1750041051009,-556.22,0.00016438,2]
[366060320,1750041051018,-2184.61,0.00016438,2]
[366060321,1750041051027,-2159.37,0.00016438,2]
[366060322,1750041051036,-1793.58,0.00016438,2]
[366060323,1750041051045,-395.73284872,0.00016438,2]
[366060324,1750041051055,-496.27785393,0.00016438,2]
[366060325,1750041051065,-151.0,0.00016438,2]
[366060326,1750041051074,-1135.5,0.00016438,2]
[366060327,1750041051083,-1450.17,0.00016438,2]
[366060328,1750041051092,-490.0,0.00016438,2]
[366060329,1750041051101,-598.35,0.00016438,2]
[366060330,1750041051111,-494.82343281,0.00016438,2]
[366060331,1750041051119,-2997.54,0.00016438,2]
[366060332,1750041051128,-490.0,0.00016438,2]
[366060333,1750041051138,-151.0,0.00016438,2]
[366060334,1750041051147,-494.135658,0.00016438,2]
[366060335,1750041051156,-329.095487,0.00016438,2]
[366060336,1750041051165,-1215.17,0.00016438,2]
[366060337,1750041051174,-490.0,0.00016438,2]
[366060338,1750041051183,-490.0,0.00016438,2]
[366060339,1750041051193,-490.0,0.00016438,2]
[366060340,1750041051203,-367.42976773,0.00016438,2]
[366060341,1750041051212,-2528.05,0.00016438,2]
[366060342,1750041051221,-572.49,0.00016438,2]
[366060343,1750041051230,-329.095487,0.00016438,2]
[366060344,1750041051244,-490.0,0.00016438,2]
[366060345,1750041051254,-553.89259933,0.00016438,2]
[366060346,1750041051263,-490.0,0.00016438,2]
[366060347,1750041051272,-1247.4,0.00016438,2]
[366060348,1750041051282,-2160.06,0.00016438,2]
[366060349,1750041051291,-1584.2,0.00016438,2]
[366060350,1750041051301,-696.08,0.00016438,2]
[366060351,1750041051312,-491.96164906,0.00016438,2]
[366060352,1750041051322,-13665.28,0.00016438,2]
[366060353,1750041051331,-2730.74,0.00016438,2]
[366060354,1750041051340,-562.27,0.00016438,2]
[366060355,1750041051350,-493.11991115,0.00016438,2]
[366060356,1750041051359,-2780.92,0.00016438,2]
[366060357,1750041051368,-490.0,0.00016438,2]
[366060358,1750041051377,-490.0,0.00016438,2]
[366060359,1750041051388,-233.76342449,0.00016438,2]
[366060360,1750041051397,-1143.94,0.00016438,2]
[366060361,1750041051406,-1364.91,0.00016438,2]
[366060362,1750041051415,-1007.03,0.00016438,2]
[366060363,1750041051425,-877.66,0.00016438,2]
[366060364,1750041051434,-959.04,0.00016438,2]
[366060365,1750041051443,-2250.73,0.00016438,2]
[366060366,1750041051452,-1057.65,0.00016438,2]
[366060367,1750041051461,-1979.07,0.00016438,2]
[366060368,1750041051470,-3790.82,0.00016438,2]
[366060369,1750041051478,-491.74741739,0.00016438,2]
[366060370,1750041051487,-1162.84,0.00016438,2]
[366060371,1750041051497,-490.0,0.00016438,2]
[366060372,1750041051505,-2299.55,0.00016438,2]
[366060373,1750041051514,-497.63430465,0.00016438,2]
[366060374,1750041051523,-522.75,0.00016438,2]
[366060375,1750041051532,-2154.12,0.00016438,2]
[366060376,1750041051541,-4350.85,0.00016438,2]
[366060377,1750041051550,-2058.74,0.00016438,2]
[366060378,1750041051559,-491.2364745,0.00016438,2]
[366060379,1750041051568,-490.0,0.00016438,2]
[366060380,1750041051577,-1649.4,0.00016438,2]
[366060381,1750041051586,-151.0,0.00016438,2]
[366060382,1750041051595,-513.07576529,0.00016438,2]
[366060383,1750041051604,-490.0,0.00016438,2]
[366060384,1750041051613,-502.67955081,0.00016438,2]
[366060385,1750041051622,-491.93690777,0.00016438,2]
[366060386,1750041051632,-680.53,0.00016438,2]
[366060387,1750041051642,-1060.08,0.00016438,2]
[366060388,1750041051651,-948.65,0.00016438,2]
[366060389,1750041051660,-10772.88,0.00016438,2]
[366060390,1750041051669,-1199.17,0.00016438,2]
[366060391,1750041051678,-490.0,0.00016438,2]
[366060392,1750041051687,-1050.86,0.00016438,2]
[366060393,1750041051696,-1073.94,0.00016438,2]
[366060394,1750041051705,-1198.41,0.00016438,2]
[366060395,1750041051714,-1413.72,0.00016438,2]
[366060396,1750041051724,-490.0,0.00016438,2]
[366060397,1750041051733,-1382.85,0.00016438,2]
[366060398,1750041051742,-490.0,0.00016438,2]
[366060399,1750041051751,-3604.47,0.00016438,2]
[366060400,1750041051761,-615.8110406,0.00016438,2]
[366060401,1750041051769,-490.0,0.00016438,2]
[366060402,1750041051778,-491.77458165,0.00016438,2]
[366060403,1750041051788,-508.42,0.00016438,2]
[366060404,1750041051796,-1293.64,0.00016438,2]
[366060405,1750041051805,-11826.52,0.00016438,2]
[366060406,1750041051815,-2911.82,0.00016438,2]
[366060407,1750041051823,-495.11879285,0.00016438,2]
[366060408,1750041051833,-490.0,0.00016438,2]
[366060409,1750041051842,-733.88,0.00016438,2]
[366060410,1750041051851,-361.69596325,0.00016438,2]
[366060411,1750041051861,-490.0,0.00016438,2]
[366060412,1750041051870,-7960.04,0.00016438,2]
[366060413,1750041051879,-861.63,0.00016438,2]
[366060414,1750041051889,-1912.54,0.00016438,2]
[366060415,1750041051898,-490.0,0.00016438,2]
[366060416,1750041051907,-490.0,0.00016438,2]
[366060417,1750041051916,-1222.34,0.00016438,2]
[366060418,1750041051925,-544.27,0.00016438,2]
[366060419,1750041051935,-2523.4,0.00016438,2]
[366060420,1750041051951,-151.0,0.00016438,2]
[366060421,1750041051960,-8539.48,0.00016438,2]
[366060422,1750041051971,-718.86,0.00016438,2]
[366060423,1750041051980,-851.5,0.00016438,2]
[366060424,1750041051990,-903.38,0.00016438,2]
[366060425,1750041051999,-903.38,0.00016438,2]
[366060426,1750041052009,-903.38,0.00016438,2]
[366060427,1750041052019,-903.38,0.00016438,2]
[366060428,1750041052028,-491.61154044,0.00016438,2]
[366060429,1750041052038,-1236.17,0.00016438,2]
[366060430,1750041052047,-564.22,0.00016438,2]
[366060431,1750041052056,-881.36,0.00016438,2]
[366060432,1750041052066,-490.0,0.00016438,2]
[366060433,1750041052075,-26126.09,0.00016438,2]
[366060434,1750041052085,-1485.09,0.00016438,2]
[366060435,1750041052094,-1007.10675473,0.00016438,2]
[366060436,1750041052103,-543.80454121,0.00016438,2]
[366060437,1750041052113,-1597.43,0.00016438,2]
[366060438,1750041052122,-4029.87,0.00016438,2]
[366060439,1750041052132,-490.0,0.00016438,2]
[366060440,1750041052142,-491.3710231,0.00016438,2]
[366060441,1750041052152,-594.4,0.00016438,2]
[366060442,1750041052161,-1180.18,0.00016438,2]
[366060443,1750041052170,-1489.34,0.00016438,2]
[366060444,1750041052180,-490.0,0.00016438,2]
[366060445,1750041052189,-500.0,0.00016438,2]
[366060446,1750041052199,-500.0,0.00016438,2]
[366060447,1750041052208,-508.148952,0.00016438,2]
[366060448,1750041052218,-491.42602028,0.00016438,2]
[366060449,1750041052227,-2296.88,0.00016438,2]
[366060450,1750041052239,-655.92,0.00016438,2]
[366060451,1750041052249,-443.35370027,0.00016438,2]
[366060452,1750041052258,-490.0,0.00016438,2]
[366060453,1750041052268,-490.0,0.00016438,2]
[366060454,1750041052278,-3366.16,0.00016438,2]
[366060455,1750041052289,-153.54236,0.00016438,2]
[366060456,1750041052299,-4632.32,0.00016438,2]
[366060457,1750041052308,-4222.27,0.00016438,2]
[366060458,1750041052319,-492.93608638,0.00016438,2]
[366060459,1750041052329,-8767.78,0.00016438,2]
[366060460,1750041052338,-952.4,0.00016438,2]
[366060461,1750041052348,-3303.97,0.00016438,2]
[366060462,1750041052358,-490.0,0.00016438,2]
[366060463,1750041052367,-1006.452956,0.00016438,2]
[366060464,1750041052377,-490.0,0.00016438,2]
[366060465,1750041052394,-19858.84,0.00016438,2]
[366060466,1750041052406,-2557.38,0.00016438,2]
[366060467,1750041052416,-490.0,0.00016438,2]
[366060468,1750041052426,-1507.53,0.00016438,2]
[366060469,1750041052436,-1006.452956,0.00016438,2]
[366060470,1750041052446,-490.0,0.00016438,2]
[366060471,1750041052456,-975.11,0.00016438,2]
[366060472,1750041052465,-1970.97,0.00016438,2]
[366060473,1750041052476,-3059.65,0.00016438,2]
[366060474,1750041052486,-1629.21,0.00016438,2]
[366060475,1750041052496,-490.0,0.00016438,2]
[366060476,1750041052506,-1069.16,0.00016438,2]
[366060477,1750041052515,-1064.8,0.00016438,2]
[366060478,1750041052525,-4929.94,0.00016438,2]
[366060479,1750041052536,-490.0,0.00016438,2]
[366060480,1750041052546,-1384.25,0.00016438,2]
[366060481,1750041052555,-928.1,0.00016438,2]
[366060482,1750041052565,-151.0,0.00016438,2]
[366060483,1750041052574,-4328.13,0.00016438,2]
[366060484,1750041052584,-1232.24,0.00016438,2]
[366060485,1750041052594,-151.0,0.00016438,2]
[366060486,1750041052604,-490.0,0.00016438,2]
[366060487,1750041052614,-490.0,0.00016438,2]
[366060488,1750041052623,-490.0,0.00016438,2]
[366060489,1750041052634,-490.0,0.00016438,2]
[366060490,1750041052644,-781.98,0.00016438,2]
[366060491,1750041052654,-151.0,0.00016438,2]
[366060492,1750041052664,-1212.92,0.00016438,2]
[366060493,1750041052673,-4375.9,0.00016438,2]
[366060494,1750041052683,-1817.4,0.00016438,2]
[366060495,1750041052692,-1062.15,0.00016438,2]
[366060496,1750041052702,-490.0,0.00016438,2]
[366060497,1750041052711,-24135.94,0.00016438,2]
[366060498,1750041052721,-490.0,0.00016438,2]
[366060499,1750041052730,-1115.18,0.00016438,2]
[366060500,1750041052740,-664.0,0.00016438,2]
[366060501,1750041052749,-199.54515643,0.00016438,2]
[366060502,1750041052759,-501.9109641,0.00016438,2]
[366060503,1750041052768,-490.0,0.00016438,2]
[366060504,1750041052778,-1475.11,0.00016438,2]
[366060505,1750041052787,-490.0,0.00016438,2]
[366060506,1750041052797,-5885.02,0.00016438,2]
[366060507,1750041052806,-1619.51,0.00016438,2]
[366060508,1750041052816,-998.13,0.00016438,2]
[366060509,1750041052825,-1954.82,0.00016438,2]
[366060510,1750041052840,-490.0,0.00016438,2]
[366060511,1750041052849,-1987.57,0.00016438,2]
[366060512,1750041052859,-9210.68,0.00016438,2]
[366060513,1750041052869,-490.0,0.00016438,2]
[366060514,1750041052878,-2174.68,0.00016438,2]
[366060515,1750041052889,-3626.15,0.00016438,2]
[366060516,1750041052899,-502.79121535,0.00016438,2]
[366060517,1750041052908,-490.0,0.00016438,2]
[366060518,1750041052918,-546.33,0.00016438,2]
[366060519,1750041052927,-490.0,0.00016438,2]
[366060520,1750041052937,-499.45,0.00016438,2]
[366060521,1750041052947,-325.500776,0.00016438,2]
[366060522,1750041052956,-493.22934533,0.00016438,2]
[366060523,1750041052966,-490.0,0.00016438,2]
[366060524,1750041052976,-497.30409909,0.00016438,2]
[366060525,1750041052986,-917.73,0.00016438,2]
[366060526,1750041052995,-498.37894836,0.00016438,2]
[366060527,1750041053005,-977.63,0.00016438,2]
[366060528,1750041053014,-1796.14,0.00016438,2]
[366060529,1750041053023,-488.5,0.00016438,2]
[366060530,1750041053033,-494.39857554,0.00016438,2]
[366060531,1750041053042,-1450.69,0.00016438,2]
[366060532,1750041053052,-325.500776,0.00016438,2]
[366060533,1750041053061,-8019.0,0.00016438,2]
[366060534,1750041053071,-10257.87,0.00016438,2]
[366060535,1750041053081,-1677.08,0.00016438,2]
[366060536,1750041053090,-490.0,0.00016438,2]
[366060537,1750041053099,-1480.78,0.00016438,2]
[366060538,1750041053110,-1781.93,0.00016438,2]
[366060539,1750041053121,-1973.02,0.00016438,2]
[366060540,1750041053132,-522.16,0.00016438,2]
[366060541,1750041053141,-490.0,0.00016438,2]
[366060542,1750041053151,-490.0,0.00016438,2]
[366060543,1750041053161,-495.76487846,0.00016438,2]
[366060544,1750041053170,-490.0,0.00016438,2]
[366060545,1750041053179,-305.28,0.00016438,2]
[366060546,1750041053188,-303.81,0.00016438,2]
[366060547,1750041053198,-1000.0,0.0001644,2]
[366060548,1750041053209,-150.0,0.00016441,2]
[366060549,1750041053219,-1000.0,0.00016445,2]
[366060550,1750041053229,-150.0,0.00016447,2]
[366060551,1750041053243,-258.44064053,0.00016448,2]
[366060552,1750041053252,-150.0,0.00016448,2]
[366060553,1750041053262,-150.0,0.00016457,2]
[366060554,1750041053271,-150.0,0.00016458,2]
[366060555,1750041053283,-267.14713931,0.00016465,2]
[366060556,1750041053292,-500.0,0.00016468,2]
[366060557,1750041053301,-500.0,0.00016468,2]
[366060558,1750041053311,-200.0,0.00016468,2]
[366060559,1750041053321,-200.0,0.00016468,2]
[366060560,1750041053331,-2264.10087164,0.00016468,2]
[366060561,1750041053341,-500.0,0.00016469,2]
[366060562,1750041053351,-200.0,0.00016469,2]
[366060563,1750041053360,-150.0,0.00016475,2]
[366060564,1750041053370,-150.0,0.00016476,2]
[366060565,1750041053379,-833.8156298,0.00016481,2]
[366060566,1750041053389,-150.0,0.00016484,2]
[366060567,1750041053399,-258.44064053,0.00016484,2]
[366060568,1750041053409,-150.0,0.00016491,2]
[366060569,1750041053420,-150.0,0.00016494,2]
[366060570,1750041053429,-176.0,0.000165,2]
[366060571,1750041053439,-176.0,0.000165,3]
[366060572,1750041053448,-176.0,0.000165,3]
[366060573,1750041053458,-176.0,0.000165,2]
[366060574,1750041053467,-176.0,0.000165,2]
[366060575,1750041053476,-180.99,0.000165,2]
[366060576,1750041053486,-151.0,0.000165,2]
[366060577,1750041053496,-150.0,0.000165,2]
[366060578,1750041053506,-151.0,0.000165,2]
[366060579,1750041053516,-151.0,0.000165,2]
[366060580,1750041053526,-1109.25,0.000165,2]
[366060581,1750041053537,-200.0,0.000165,6]
[366060582,1750041053546,-151.98104518,0.00016501,2]
[366060583,1750041053568,-150.37058891,0.00016502,2]
[366060584,1750041053578,-3982.02681534,0.00016502,2]
[366060585,1750041053589,-150.0,0.00016506,2]
[366060586,1750041053599,-150.0,0.00016509,2]
[366060587,1750041053610,-1000.0,0.00016519,2]
[366060588,1750041053622,-258.44064053,0.00016521,2]
[366060589,1750041053633,-150.0,0.00016523,2]
[366060590,1750041053642,-2347.87260389,0.00016523,2]
[366060591,1750041053651,-1000.0,0.00016524,2]
[366060592,1750041053662,-150.0,0.00016524,2]
[366060593,1750041053672,-194.58963855,0.00016525,2]
[366060594,1750041053681,-3048.227,0.00016525,2]
[366060595,1750041053690,-150.0,0.00016527,2]
[366060596,1750041053701,-150.0,0.00016536,2]
[366060597,1750041053711,-150.0,0.00016543,2]
[366060598,1750041053720,-150.0,0.00016546,2]
[366060599,1750041053730,-150.0,0.00016546,2]
[366060600,1750041053741,-150.0,0.00016556,2]
[366060601,1750041053751,-258.44064053,0.00016557,2]
[366060602,1750041053762,-150.0,0.00016567,2]
[366060603,1750041053771,-151.98104517,0.00016568,2]
[366060604,1750041053782,-500.82280962,0.0001657,2]
[366060605,1750041053792,-1001.3699622,0.0001657,2]
[366060606,1750041053803,-150.0,0.00016572,2]
[366060607,1750041053813,-500.0,0.00016573,2]
[366060608,1750041053822,-152.912258,0.00016575,2]
[366060609,1750041053832,-150.77357222,0.00016575,2]
[366060610,1750041053841,-150.0,0.00016575,2]
[366060611,1750041053851,-500.0,0.00016575,2]
[366060612,1750041053861,-150.70025555,0.00016575,2]
[366060613,1750041053871,-150.0,0.00016575,2]
[366060614,1750041053882,-500.0,0.00016575,2]
[366060615,1750041053891,-500.0,0.00016575,2]
[366060616,1750041053901,-150.51384359,0.00016575,2]
[366060617,1750041053910,-500.0,0.00016575,2]
[366060618,1750041053920,-500.0,0.00016575,2]
[366060619,1750041053930,-150.0,0.00016575,2]
[366060620,1750041053939,-150.0,0.00016575,2]
[366060621,1750041053951,-150.0,0.00016575,2]
[366060622,1750041053961,-150.0,0.00016575,2]
[366060623,1750041053970,-150.0,0.00016575,2]
[366060624,1750041053980,-500.0,0.00016575,2]
[366060625,1750041053994,-150.0,0.00016575,2]
[366060626,1750041054005,-152.09023855,0.00016575,2]
[366060627,1750041054015,-500.0,0.00016575,2]
[366060628,1750041054024,-257.94950102,0.00016575,2]
[366060629,1750041054035,-500.0,0.00016575,2]
[366060630,1750041054044,-150.0,0.00016575,2]
[366060631,1750041054055,-156.89620895,0.00016575,2]
[366060632,1750041054065,-161.27755723,0.00016575,2]
[366060633,1750041054074,-160.43696456,0.00016575,2]
[366060634,1750041054084,-500.0,0.00016575,2]
[366060635,1750041054095,-500.0,0.00016576,2]
[366060636,1750041054105,-2434.74389024,0.00016578,2]
[366060637,1750041054115,-500.0,0.00016581,2]
[366060638,1750041054125,-150.0,0.00016583,2]
[366060639,1750041054136,-150.0,0.00016585,2]
[366060640,1750041054146,-551.01796981,0.00016591,2]
[366060641,1750041054156,-490.0,0.00016591,2]
[366060642,1750041054166,-490.89986222,0.00016591,2]
[366060643,1750041054176,-500.0,0.00016591,2]
[366060644,1750041054186,-500.0,0.00016591,2]
[366060645,1750041054195,-157.31186,0.00016591,2]
[366060646,1750041054205,-157.31186,0.00016591,2]
[366060647,1750041054215,-500.0,0.00016591,2]
[366060648,1750041054225,-151.0,0.00016591,2]
[366060649,1750041054235,-174.944583,0.00016591,2]
[366060650,1750041054249,-151.0,0.00016591,2]
[366060651,1750041054259,-151.0,0.00016591,2]
[366060652,1750041054269,-3968.73,0.00016591,2]
[366060653,1750041054278,-2803.2,0.00016591,2]
[366060654,1750041054288,-151.0,0.00016591,2]
[366060655,1750041054298,-2760.31,0.00016591,2]
[366060656,1750041054308,-1735.58,0.00016591,2]
[366060657,1750041054318,-4696.41,0.00016591,2]
[366060658,1750041054328,-151.0,0.00016591,2]
[366060659,1750041054338,-151.0,0.00016591,2]
[366060660,1750041054348,-556.22,0.00016591,2]
[366060661,1750041054358,-206.536721,0.00016591,2]
[366060662,1750041054368,-329.095487,0.00016591,2]
[366060663,1750041054377,-329.095487,0.00016591,2]
[366060664,1750041054388,-151.0,0.00016591,2]